fUSD/lending_fUSD_20250505
["ID","MTS","AMOUNT","RATE_DAILY","PERIOD"]
[359966429,1746453046445,-450.0,0.00019897,2]
[359966430,1746453046454,-450.0,0.00019897,2]
[359966431,1746453046463,-450.0,0.00019897,2]
[359966432,1746453046473,-450.0,0.00019897,2]
[359966434,1746453046482,-450.0,0.00019897,2]
[359966435,1746453046491,-450.0,0.00019897,2]
[359966436,1746453046500,-450.0,0.00019897,2]
[359966437,1746453046509,-450.0,0.00019897,2]
[359966439,1746453046519,-450.0,0.00019897,2]
[359966441,1746453046528,-450.0,0.00019897,2]
[359966443,1746453046537,-450.0,0.00019897,2]
[359966445,1746453046546,-450.0,0.00019897,2]
[359966447,1746453046555,-480.5,0.00019897,2]
[359966448,1746453046564,-450.0,0.00019897,2]
[359966449,1746453046573,-450.0,0.00019897,2]
[359966450,1746453046582,-450.0,0.00019897,2]
[359966451,1746453046591,-450.0,0.00019897,2]
[359966452,1746453046600,-450.0,0.00019897,2]
[359966453,1746453046609,-450.0,0.00019897,2]
[359966454,1746453046618,-450.0,0.00019897,2]
[359966455,1746453046628,-450.0,0.00019897,2]
[359966456,1746453046638,-450.0,0.00019897,2]
[359966457,1746453046647,-450.0,0.00019897,2]
[359966458,1746453046655,-450.0,0.00019897,2]
[359966459,1746453046664,-794.6919339,0.00019897,2]
[359966466,1746453046893,-565.32665385,0.00019897,2]
[359966467,1746453046904,-1901.08141225,0.00019897,2]
[359966468,1746453046914,-450.0,0.00019897,2]
[359966469,1746453046924,-497.61,0.00019897,2]
[359966470,1746453046934,-450.0,0.00019897,2]
[359966471,1746453046943,-450.0,0.00019897,2]
[359966472,1746453046953,-450.0,0.00019897,2]
[359966473,1746453046962,-450.0,0.00019897,2]
[359966474,1746453046971,-450.0,0.00019897,2]
[359966475,1746453046981,-450.0,0.00019897,2]
[359966476,1746453046991,-450.0,0.00019897,2]
[359966477,1746453047000,-450.0,0.00019897,2]
[359966478,1746453047010,-450.0,0.00019897,2]
[359966479,1746453047020,-450.0,0.00019897,2]
[359966480,1746453047030,-300.86176427,0.00019897,2]
[359966481,1746453047041,-149.13823573,0.00019897,2]
[359966482,1746453047051,-450.0,0.00019897,2]
[359966483,1746453047060,-450.0,0.00019897,2]
[359966484,1746453047069,-450.0,0.00019897,2]
[359966485,1746453047079,-450.0,0.00019897,2]
[359966486,1746453047089,-450.0,0.00019897,2]
[359966487,1746453047098,-450.0,0.00019897,2]
[359966488,1746453047108,-450.0,0.00019897,2]
[359966489,1746453047117,-450.0,0.00019897,2]
[359966490,1746453047127,-450.0,0.00019897,2]
[359966491,1746453047136,-450.0,0.00019897,2]
[359966492,1746453047146,-450.0,0.00019897,2]
[359966493,1746453047155,-450.0,0.00019897,2]
[359966494,1746453047165,-744.93,0.00019897,2]
[359966495,1746453047175,-450.0,0.00019897,2]
[359966496,1746453047185,-450.0,0.00019897,2]
[359966497,1746453047194,-450.0,0.00019897,2]
[359966498,1746453047207,-450.0,0.00019897,2]
[359966499,1746453047217,-450.0,0.00019897,2]
[359966500,1746453047227,-450.0,0.00019897,2]
[359966501,1746453047236,-126.46815127,0.00019897,2]
[359966502,1746453047251,-323.53184873,0.00019897,2]
[359966503,1746453047260,-953.33359089,0.00019897,2]
[359966504,1746453047273,-16009.02640911,0.00019897,2]
[359966505,1746453047283,-168.62056832,0.00019897,2]
[359966506,1746453047292,-450.0,0.00019897,2]
[359966507,1746453047302,-450.0,0.00019897,2]
[359966508,1746453047312,-450.0,0.00019897,2]
[359966509,1746453047321,-490.32,0.00019897,2]
[359966510,1746453047331,-450.0,0.00019897,2]
[359966511,1746453047340,-450.0,0.00019897,2]
[359966512,1746453047349,-500.0,0.00019897,2]
[359966513,1746453047359,-450.0,0.00019897,2]
[359966514,1746453047368,-500.0,0.00019897,2]
[359966515,1746453047378,-689.59,0.00019897,2]
[359966516,1746453047387,-1071.82,0.00019897,2]
[359966517,1746453047397,-450.0,0.00019897,2]
[359966518,1746453047407,-474.77,0.00019897,2]
[359966519,1746453047416,-781.77,0.00019897,2]
[359966520,1746453047564,-450.0,0.00019897,2]
[359966521,1746453047574,-450.0,0.00019897,2]
[359966522,1746453047584,-450.0,0.00019897,2]
[359966523,1746453047593,-503.46,0.00019897,2]
[359966524,1746453047603,-450.0,0.00019897,2]
[359966525,1746453047612,-450.0,0.00019897,2]
[359966526,1746453047622,-450.0,0.00019897,2]
[359966527,1746453047631,-450.0,0.00019897,2]
[359966528,1746453047641,-450.0,0.00019897,2]
[359966529,1746453047651,-450.0,0.00019897,2]
[359966530,1746453047660,-921.08,0.00019897,2]
[359966531,1746453047670,-450.0,0.00019897,2]
[359966532,1746453047680,-450.0,0.00019897,2]
[359966533,1746453047690,-450.0,0.00019897,2]
[359966534,1746453047700,-450.0,0.00019897,2]
[359966535,1746453047710,-1479.2,0.00019897,2]
[359966536,1746453047720,-13488.87,0.00019897,2]
[359966537,1746453047730,-450.0,0.00019897,2]
[359966538,1746453047740,-450.0,0.00019897,2]
[359966539,1746453047750,-450.0,0.00019897,2]
[359966540,1746453047760,-450.0,0.00019897,2]
[359966541,1746453047769,-1167.69,0.00019897,2]
[359966542,1746453047779,-450.0,0.00019897,2]
[359966543,1746453047789,-450.0,0.00019897,2]
[359966544,1746453047800,-450.0,0.00019897,2]
[359966545,1746453047809,-450.0,0.00019897,2]
[359966546,1746453047819,-189.69737975,0.00019897,2]
[359966547,1746453047829,-181.37443076,0.00019897,2]
[359966548,1746453047838,-327.1883788,0.00019897,2]
[359966549,1746453047848,-500.0,0.00019897,2]
[359966550,1746453047858,-260.72725135,0.00019897,2]
[359966551,1746453047868,-500.0,0.00019897,2]
[359966552,1746453047878,-415.11275419,0.00019897,2]
[359966553,1746453047887,-191.60660354,0.00019897,2]
[359966554,1746453047897,-500.0,0.00019897,2]
[359966555,1746453047906,-500.0,0.00019897,2]
[359966556,1746453047916,-500.0,0.00019897,2]
[359966557,1746453047927,-500.0,0.00019897,2]
[359966558,1746453047937,-500.0,0.00019897,2]
[359966559,1746453047946,-500.0,0.00019897,2]
[359966560,1746453047956,-450.0,0.00019897,2]
[359966561,1746453047966,-500.0,0.00019897,2]
[359966562,1746453047975,-500.0,0.00019897,2]
[359966563,1746453047985,-500.0,0.00019897,2]
[359966564,1746453047994,-500.0,0.00019897,2]
[359966565,1746453048003,-450.0,0.00019897,2]
[359966566,1746453048013,-450.0,0.00019897,2]
[359966567,1746453048022,-450.0,0.00019898,2]
[359966568,1746453048032,-450.0,0.00019898,2]
[359966569,1746453048041,-450.0,0.00019898,2]
[359966570,1746453048051,-450.0,0.00019898,2]
[359966571,1746453048060,-450.0,0.00019898,2]
[359966572,1746453048069,-450.0,0.00019898,2]
[359966573,1746453048079,-450.0,0.00019898,2]
[359966574,1746453048089,-450.0,0.00019898,2]
[359966575,1746453048098,-450.0,0.00019898,2]
[359966576,1746453048108,-450.0,0.00019898,2]
[359966577,1746453048117,-450.0,0.00019898,2]
[359966578,1746453048127,-450.0,0.00019898,2]
[359966579,1746453048136,-450.0,0.00019898,2]
[359966580,1746453048146,-450.0,0.00019898,2]
[359966581,1746453048155,-480.5,0.00019898,2]
[359966582,1746453048165,-450.0,0.00019898,2]
[359966583,1746453048175,-450.0,0.00019898,2]
[359966584,1746453048185,-450.0,0.00019898,2]
[359966585,1746453048194,-450.0,0.00019898,2]
[359966586,1746453048206,-450.0,0.00019898,2]
[359966587,1746453048216,-450.0,0.00019898,2]
[359966588,1746453048226,-450.0,0.00019898,2]
[359966589,1746453048235,-450.0,0.00019898,2]
[359966590,1746453048245,-450.0,0.00019898,2]
[359966591,1746453048255,-450.0,0.00019898,2]
[359966592,1746453048264,-450.0,0.00019898,2]
[359966593,1746453048274,-450.0,0.00019898,2]
[359966594,1746453048284,-450.0,0.00019898,2]
[359966595,1746453048294,-500.0,0.00019898,2]
[359966596,1746453048303,-1071.82,0.00019898,2]
[359966597,1746453048313,-474.77,0.00019898,2]
[359966598,1746453048322,-921.08,0.00019898,2]
[359966599,1746453048332,-450.0,0.00019899,2]
[359966600,1746453048341,-450.0,0.00019899,2]
[359966601,1746453048350,-450.0,0.00019899,2]
[359966602,1746453048359,-450.0,0.00019899,2]
[359966603,1746453048368,-348.15093681,0.00019899,2]
[359966604,1746453048378,-450.0,0.00019899,2]
[359966605,1746453048387,-450.0,0.00019899,2]
[359966606,1746453048396,-450.0,0.00019899,2]
[359966607,1746453048405,-450.0,0.00019899,2]
[359966608,1746453048415,-450.0,0.00019899,2]
[359966609,1746453048425,-450.0,0.00019899,2]
[359966610,1746453048434,-450.0,0.00019899,2]
[359966611,1746453048443,-450.0,0.00019899,2]
[359966612,1746453048452,-450.0,0.00019899,2]
[359966613,1746453048462,-450.0,0.00019899,2]
[359966614,1746453048471,-480.5,0.00019899,2]
[359966615,1746453048480,-450.0,0.00019899,2]
[359966616,1746453048490,-450.0,0.00019899,2]
[359966617,1746453048499,-450.0,0.00019899,2]
[359966618,1746453048508,-450.0,0.00019899,2]
[359966619,1746453048517,-450.0,0.00019899,2]
[359966620,1746453048526,-450.0,0.00019899,2]
[359966621,1746453048535,-450.0,0.00019899,2]
[359966622,1746453048544,-450.0,0.00019899,2]
[359966623,1746453048553,-538.06,0.00019899,2]
[359966624,1746453048563,-3261.1,0.00019899,2]
[359966625,1746453048571,-450.0,0.00019899,2]
[359966626,1746453048581,-450.0,0.00019899,2]
[359966627,1746453048589,-450.0,0.00019899,2]
[359966628,1746453048599,-450.0,0.00019899,2]
[359966629,1746453048608,-386.62590971,0.00019899,2]
[359966630,1746453048618,-450.0,0.00019899,2]
[359966631,1746453048627,-450.0,0.00019899,2]
[359966632,1746453048636,-450.0,0.00019899,2]
[359966633,1746453048645,-450.0,0.00019899,2]
[359966634,1746453048654,-450.0,0.00019899,2]
[359966635,1746453048663,-450.0,0.00019899,2]
[359966636,1746453048673,-450.0,0.00019899,2]
[359966637,1746453048682,-492.94121386,0.00019899,2]
[359966638,1746453048691,-450.0,0.00019899,2]
[359966639,1746453048701,-450.0,0.00019899,2]
[359966640,1746453048710,-450.0,0.00019899,2]
[359966641,1746453048719,-450.0,0.00019899,2]
[359966642,1746453048728,-744.93,0.00019899,2]
[359966643,1746453048737,-450.0,0.00019899,2]
[359966644,1746453048747,-450.0,0.00019899,2]
[359966645,1746453048756,-450.0,0.00019899,2]
[359966646,1746453048765,-450.0,0.00019899,2]
[359966647,1746453048774,-450.0,0.00019899,2]
[359966648,1746453048783,-450.0,0.00019899,2]
[359966649,1746453048793,-16962.36,0.00019899,2]
[359966650,1746453048802,-450.0,0.00019899,2]
[359966651,1746453048811,-450.0,0.00019899,2]
[359966652,1746453048820,-367.62,0.00019899,2]
[359966653,1746453048829,-490.32,0.00019899,2]
[359966654,1746453048838,-450.0,0.00019899,2]
[359966655,1746453048847,-450.0,0.00019899,2]
[359966656,1746453048856,-500.0,0.00019899,2]
[359966657,1746453048866,-450.0,0.00019899,2]
[359966658,1746453048875,-500.0,0.00019899,2]
[359966659,1746453048885,-689.59,0.00019899,2]
[359966660,1746453048894,-1071.82,0.00019899,2]
[359966661,1746453048904,-450.0,0.00019899,2]
[359966662,1746453048913,-474.77,0.00019899,2]
[359966663,1746453048923,-781.77,0.00019899,2]
[359966664,1746453048933,-450.0,0.00019899,2]
[359966665,1746453048942,-450.0,0.00019899,2]
[359966666,1746453048952,-450.0,0.00019899,2]
[359966667,1746453048962,-503.46,0.00019899,2]
[359966668,1746453048971,-450.0,0.00019899,2]
[359966669,1746453048982,-450.0,0.00019899,2]
[359966670,1746453048992,-450.0,0.00019899,2]
[359966671,1746453049002,-450.0,0.00019899,2]
[359966672,1746453049011,-450.0,0.00019899,2]
[359966673,1746453049021,-450.0,0.00019899,2]
[359966674,1746453049031,-921.08,0.00019899,2]
[359966675,1746453049040,-417.14861565,0.00019899,2]
[359966676,1746453049049,-450.0,0.00019899,2]
[359966677,1746453049059,-450.0,0.00019899,2]
[359966678,1746453049068,-450.0,0.00019899,2]
[359966679,1746453049078,-1479.2,0.00019899,2]
[359966680,1746453049087,-13488.87,0.00019899,2]
[359966681,1746453049097,-450.0,0.00019899,2]
[359966682,1746453049107,-450.0,0.00019899,2]
[359966683,1746453049116,-1167.69,0.00019899,2]
[359966684,1746453049126,-450.0,0.00019899,2]
[359966685,1746453049135,-450.0,0.00019899,2]
[359966686,1746453049145,-450.0,0.00019899,2]
[359966687,1746453049154,-450.0,0.00019899,2]
[359966688,1746453049164,-450.0,0.00019899,2]
[359966689,1746453049175,-450.0,0.00019899,2]
[359966690,1746453049185,-1895.04451813,0.000199,2]
[359966691,1746453049194,-652.81252524,0.000199,2]
[359966692,1746453049205,-450.0,0.00019922,2]
[359966693,1746453049215,-452.63963356,0.00019922,2]
[359966694,1746453049224,-2311.02,0.00019922,2]
[359966695,1746453049234,-450.0,0.00019922,2]
[359966696,1746453049243,-450.0,0.00019922,2]
[359966697,1746453049253,-3147.78,0.00019922,2]
[359966698,1746453049263,-495.15,0.00019922,2]
[359966699,1746453049273,-2906.99,0.00019922,2]
[359966700,1746453049284,-450.0,0.00019922,2]
[359966701,1746453049295,-5805.65,0.00019922,2]
[359966702,1746453049305,-450.0,0.00019922,2]
[359966703,1746453049314,-450.0,0.00019922,2]
[359966704,1746453049324,-450.0,0.00019922,2]
[359966705,1746453049333,-450.0,0.00019922,2]
[359966706,1746453049343,-450.0,0.00019922,2]
[359966707,1746453049351,-2566.01,0.00019922,2]
[359966708,1746453049361,-450.0,0.00019922,2]
[359966709,1746453049371,-59706.0,0.00019922,2]
[359966710,1746453049380,-450.0,0.00019922,2]
[359966711,1746453049389,-450.3,0.00019922,2]
[359966712,1746453049398,-450.0,0.00019922,2]
[359966713,1746453049407,-1779.88,0.00019922,2]
[359966714,1746453049416,-450.0,0.00019922,2]
[359966715,1746453049427,-450.0,0.00019922,2]
[359966716,1746453049436,-8505.74,0.00019922,2]
[359966717,1746453049445,-500.0,0.00019922,2]
[359966718,1746453049454,-577.36,0.00019922,2]
[359966719,1746453049464,-450.0,0.00019922,2]
[359966720,1746453049473,-450.0,0.00019922,2]
[359966721,1746453049482,-450.0,0.00019922,2]
[359966722,1746453049491,-450.0,0.00019922,2]
[359966723,1746453049501,-593.85026206,0.00019922,2]
[359966724,1746453049511,-450.0,0.00019922,2]
[359966725,1746453049520,-3937.9,0.00019922,2]
[359966726,1746453049529,-450.0,0.00019922,2]
[359966727,1746453049538,-450.0,0.00019922,2]
[359966728,1746453049548,-753.6,0.00019922,2]
[359966729,1746453049557,-450.0,0.00019922,2]
[359966730,1746453049566,-500.0,0.00019922,2]
[359966731,1746453049575,-450.0,0.00019922,2]
[359966732,1746453049584,-450.0,0.00019922,2]
[359966733,1746453049593,-450.0,0.00019922,2]
[359966734,1746453049603,-450.0,0.00019922,2]
[359966735,1746453049612,-654.13,0.00019922,2]
[359966736,1746453049621,-450.0,0.00019922,2]
[359966737,1746453049631,-692.53,0.00019922,2]
[359966738,1746453049640,-450.0,0.00019922,2]
[359966739,1746453049649,-503.46,0.00019922,2]
[359966740,1746453049658,-535.72,0.00019922,2]
[359966741,1746453049667,-450.0,0.00019922,2]
[359966742,1746453049676,-777.26,0.00019922,2]
[359966743,1746453049685,-450.0,0.00019922,2]
[359966744,1746453049695,-450.0,0.00019922,2]
[359966745,1746453049703,-450.0,0.00019922,2]
[359966746,1746453049712,-450.0,0.00019922,2]
[359966747,1746453049722,-450.0,0.00019923,2]
[359966748,1746453049731,-450.0,0.00019923,2]
[359966749,1746453049740,-450.0,0.00019923,2]
[359966750,1746453049749,-450.0,0.00019923,2]
[359966751,1746453049758,-450.0,0.00019923,2]
[359966752,1746453049767,-450.0,0.00019923,2]
[359966753,1746453049777,-450.0,0.00019923,2]
[359966754,1746453049786,-500.0,0.00019923,2]
[359966755,1746453049796,-500.0,0.00019923,2]
[359966756,1746453049805,-500.0,0.00019923,2]
[359966757,1746453049814,-476.2,0.00019923,2]
[359966758,1746453049824,-450.0,0.00019923,2]
[359966759,1746453049834,-450.0,0.00019923,2]
[359966760,1746453049843,-450.0,0.00019923,2]
[359966761,1746453049955,-450.0,0.00019923,2]
[359966762,1746453049979,-450.0,0.00019923,2]
[359966763,1746453049989,-753.6,0.00019923,2]
[359966764,1746453050002,-753.6,0.00019923,2]
[359966765,1746453050012,-753.6,0.00019923,2]
[359966766,1746453050022,-450.0,0.00019923,2]
[359966767,1746453050032,-450.0,0.00019923,2]
[359966768,1746453050041,-450.0,0.00019923,2]
[359966769,1746453050051,-450.0,0.00019923,2]
[359966770,1746453050060,-654.13,0.00019923,2]
[359966771,1746453050070,-654.13,0.00019923,2]
[359966772,1746453050079,-654.13,0.00019923,2]
[359966773,1746453050090,-692.53,0.00019923,2]
[359966774,1746453050099,-692.53,0.00019923,2]
[359966775,1746453050108,-692.53,0.00019923,2]
[359966776,1746453050117,-535.72,0.00019923,2]
[359966777,1746453050127,-535.72,0.00019923,2]
[359966778,1746453050136,-535.72,0.00019923,2]
[359966779,1746453050146,-777.26,0.00019923,2]
[359966780,1746453050156,-777.26,0.00019923,2]
[359966781,1746453050166,-777.26,0.00019923,2]
[359966782,1746453050176,-450.0,0.00019923,2]
[359966783,1746453050186,-450.0,0.00019923,2]
[359966784,1746453050196,-450.0,0.00019923,2]
[359966785,1746453050208,-450.0,0.00019923,2]
[359966786,1746453050218,-450.0,0.00019923,2]
[359966787,1746453050227,-450.0,0.00019923,2]
[359966788,1746453050236,-450.0,0.00019933,2]
[359966789,1746453050245,-450.0,0.00019933,2]
[359966790,1746453050255,-450.0,0.00019933,2]
[359966791,1746453050264,-450.0,0.00019933,2]
[359966792,1746453050273,-450.0,0.00019933,2]
[359966793,1746453050283,-450.0,0.00019933,2]
[359966794,1746453050293,-450.0,0.00019933,2]
[359966795,1746453050302,-450.0,0.00019933,2]
[359966796,1746453050311,-450.0,0.00019933,2]
[359966797,1746453050321,-450.0,0.00019933,2]
[359966798,1746453050330,-450.0,0.00019933,2]
[359966799,1746453050339,-533.76899943,0.00019933,2]
[359966800,1746453050349,-450.0,0.00019933,2]
[359966801,1746453050358,-450.0,0.00019933,2]
[359966802,1746453050368,-450.0,0.00019933,2]
[359966803,1746453050377,-450.0,0.00019933,2]
[359966804,1746453050386,-450.0,0.00019933,2]
[359966805,1746453050395,-450.0,0.00019933,2]
[359966806,1746453050405,-450.0,0.00019933,2]
[359966807,1746453050415,-450.0,0.00019933,2]
[359966808,1746453050425,-450.0,0.00019933,2]
[359966809,1746453050434,-450.0,0.00019933,2]
[359966810,1746453050443,-450.0,0.00019933,2]
[359966811,1746453050453,-450.0,0.00019933,2]
[359966812,1746453050462,-450.0,0.00019933,2]
[359966813,1746453050472,-450.0,0.00019933,2]
[359966814,1746453050481,-450.0,0.00019933,2]
[359966815,1746453050491,-3265.94,0.00019933,2]
[359966816,1746453050500,-450.0,0.00019933,2]
[359966817,1746453050509,-450.0,0.00019933,2]
[359966818,1746453050519,-450.0,0.00019933,2]
[359966819,1746453050528,-450.0,0.00019933,2]
[359966820,1746453050537,-827.56,0.00019933,2]
[359966821,1746453050546,-450.0,0.00019933,2]
[359966822,1746453050556,-450.0,0.00019933,2]
[359966823,1746453050565,-233.01178262,0.00019933,2]
[359966824,1746453050574,-450.0,0.00019933,2]
[359966825,1746453050584,-450.0,0.00019933,2]
[359966826,1746453050593,-450.0,0.00019933,2]
[359966827,1746453050602,-450.0,0.00019934,2]
[359966828,1746453050611,-555.62,0.00019934,2]
[359966829,1746453050620,-548.42,0.00019934,2]
[359966830,1746453050630,-517.09,0.00019934,2]
[359966831,1746453050639,-450.0,0.00019934,2]
[359966832,1746453050649,-2311.02,0.00019934,2]
[359966833,1746453050659,-450.0,0.00019934,2]
[359966834,1746453050669,-3147.78,0.00019934,2]
[359966835,1746453050681,-495.15,0.00019934,2]
[359966836,1746453050691,-450.0,0.00019934,2]
[359966837,1746453050700,-450.0,0.00019934,2]
[359966838,1746453050710,-2906.99,0.00019934,2]
[359966839,1746453050719,-450.0,0.00019934,2]
[359966840,1746453050730,-637.73600881,0.00019934,2]
[359966841,1746453055114,-961.54382085,0.00019934,2]
[359966842,1746453058022,-1153.78919706,0.00019934,2]
[359966843,1746453058235,-336.0581857,0.00019934,2]
[359966844,1746453058624,-450.0,0.00019895,2]
[359966845,1746453058634,-450.0,0.00019895,2]
[359966846,1746453058643,-450.0,0.00019896,2]
[359966847,1746453058653,-102.11836136,0.00019933,2]
[359966848,1746453058664,-347.88163864,0.00019933,2]
[359966849,1746453058673,-823.28836623,0.00019934,2]
[359966850,1746453062890,-451.83985993,0.00019895,2]
[359966851,1746453062900,-142.862742,0.00019896,2]
[359966852,1746453062926,-366.10670828,0.00019847,2]
[359966853,1746453062936,-307.137258,0.00019896,2]
[359966854,1746453062945,-450.0,0.00019896,2]
[359966855,1746453062955,-450.0,0.00019897,2]
[359966856,1746453062964,-65.30225032,0.00019897,2]
[359966857,1746453065805,-234.69774968,0.00019897,2]
[359966858,1746453065815,-593.76,0.00019899,2]
[359966859,1746453065824,-32.11894866,0.00019933,2]
[359966860,1746453065850,-450.0,0.00019896,2]
[359966861,1746453065859,-115.7652,0.00019933,2]
[359966862,1746453065871,-302.11585134,0.00019933,2]
[359966863,1746453065880,-1820.00404866,0.00019934,2]
[359966864,1746453066151,-73.23037269,0.00019934,2]
[359966865,1746453066160,-450.0,0.00019934,2]
[359966866,1746453066170,-292.16170776,0.00019934,2]
[359966867,1746453066180,-450.0,0.00019934,2]
[359966868,1746453066190,-3261.1,0.00019934,2]
[359966869,1746453066199,-450.0,0.00019934,2]
[359966870,1746453066210,-2566.01,0.00019934,2]
[359966871,1746453066221,-59706.0,0.00019934,2]
[359966872,1746453066235,-450.0,0.00019934,2]
[359966873,1746453066245,-1779.88,0.00019934,2]
[359966874,1746453066254,-450.0,0.00019934,2]
[359966875,1746453066264,-450.0,0.00019934,2]
[359966876,1746453066273,-8505.74,0.00019934,2]
[359966877,1746453066283,-154.63,0.00019934,2]
[359966878,1746453066292,-450.0,0.00019934,2]
[359966879,1746453066302,-744.93,0.00019934,2]
[359966880,1746453066312,-450.0,0.00019934,2]
[359966881,1746453066322,-3937.9,0.00019934,2]
[359966882,1746453066331,-16962.36,0.00019934,2]
[359966883,1746453066340,-450.0,0.00019934,2]
[359966884,1746453066350,-450.0,0.00019934,2]
[359966885,1746453066359,-490.32,0.00019934,2]
[359966886,1746453066369,-101724.8394395,0.00019934,2]
[359966887,1746453066384,-2893.26,0.00019934,2]
[359966888,1746453066395,-3777.16,0.00019934,2]
[359966889,1746453066410,-7711.81025995,0.00019934,2]
[359966890,1746453066422,-2484.25463559,0.00019934,2]
[359966891,1746453066434,-1760.63299876,0.00019934,2]
[359966892,1746453066443,-689.59,0.00019934,2]
[359966893,1746453066452,-781.77,0.00019934,2]
[359966894,1746453066461,-477.72,0.00019934,2]
[359966895,1746453066471,-450.0,0.00019934,2]
[359966896,1746453066480,-450.0,0.00019934,2]
[359966897,1746453066489,-450.0,0.00019934,2]
[359966898,1746453066499,-75.80796338,0.00019934,2]
[359966899,1746453068857,-374.19203662,0.00019934,2]
[359966900,1746453068867,-233.96103223,0.00019934,2]
[359966901,1746453069080,-216.03896777,0.00019934,2]
[359966902,1746453069090,-450.0,0.00019934,2]
[359966903,1746453069100,-275.96103223,0.00019934,2]
[359966905,1746453164684,910.62,0.00017,2]
[359966906,1746453164910,910.62,0.00019263,2]
[359966907,1746453182228,250.0,0.00017,2]
[359966908,1746453183558,300.0,0.00019,2]
[359966909,1746453190593,14000.0,0.00018924,2]
[359966910,1746453272118,1044.084465,0.00019487,2]
[359966911,1746453275190,1000.0,0.00018865,2]
[359966912,1746453309590,163.42,0.00018862,2]
[359966913,1746453335675,447.39,0.00018851,2]
[359966914,1746453371604,500.0,0.00027945,30]
[359966915,1746453371860,500.0,0.00029315,30]
[359966916,1746453376699,8172.08258653,0.00019,2]
[359966917,1746453413820,450.0,0.00027397,120]
[359966918,1746453431251,4341.43813686,0.0003,30]
[359966919,1746453518229,612.48190259,0.00019079,2]
[359966920,1746453518541,612.48190259,0.00019424,2]
[359966921,1746453622234,1500.0,0.0003,30]
[359966922,1746453667354,248.92393721,0.0003013,120]
[359966923,1746453902962,250.0,0.00018805,2]
[359966924,1746453985331,166.63,0.00019392,2]
[359966925,1746453987959,500.0,0.00027945,30]
[359966926,1746453988294,500.0,0.00029315,30]
[359966938,1746454147305,612.48190261,0.0001948,2]
[359967076,1746454196823,882.6,0.00016881,2]
[359967077,1746454197033,882.6,0.00019145,2]
[359967087,1746454232092,-269.16895991,0.00019586,2]
[359967088,1746454232101,-191.61580811,0.00019586,2]
[359967089,1746454232113,-8.38419189,0.00019586,2]
[359967090,1746454232123,-200.0,0.000196,2]
[359967091,1746454232132,-300.0,0.00019729,2]
[359967092,1746454232142,-51.35220811,0.00019729,2]
[359967093,1746454232153,-475.0,0.00019729,2]
[359967094,1746454232164,-547.25853702,0.00019729,2]
[359967193,1746454238133,-126.38925487,0.00019729,2]
[359967194,1746454238144,-263.698,0.0001973,2]
[359967195,1746454238153,-1000.0,0.00019746,2]
[359967196,1746454238162,-300.0,0.00019746,2]